fUST/lending_fUST_20250616
["ID","MTS","AMOUNT","RATE_DAILY","PERIOD"]
[366052043,1750036147321,-460.0,0.00021917,4]
[366052044,1750036147350,-207.0,0.00021964,2]
[366052045,1750036147375,-207.0,0.00022005,2]
[366052046,1750036147399,-208.13730472,0.00022085,2]
[366052047,1750036147426,-460.0,0.00022189,4]
[366052048,1750036147457,-460.0,0.00022189,4]
[366052049,1750036147482,-460.0,0.00022189,4]
[366052050,1750036147505,-626.29110968,0.0002219,2]
[366052051,1750036147530,-500.0,0.0002219,2]
[366052052,1750036147556,-279.3792631,0.0002219,2]
[366052053,1750036147584,-500.0,0.0002219,2]
[366052054,1750036147610,-500.0,0.0002219,2]
[366052055,1750036147636,-500.0,0.0002219,2]
[366052056,1750036147661,-500.0,0.0002219,2]
[366052057,1750036147686,-500.0,0.0002219,2]
[366052058,1750036147712,-500.0,0.0002219,2]
[366052059,1750036147740,-500.0,0.0002219,2]
[366052060,1750036147762,-1000.0,0.00022191,4]
[366052061,1750036147786,-460.0,0.00022191,4]
[366052062,1750036147808,-460.0,0.00022191,4]
[366052063,1750036147836,-460.0,0.00022191,4]
[366052064,1750036147862,-190.15,0.00022191,4]
[366052065,1750036147889,-460.0,0.00022191,4]
[366052066,1750036147913,-460.0,0.00022191,4]
[366052067,1750036147938,-460.0,0.00022191,4]
[366052068,1750036147962,-556.01,0.00022191,4]
[366052069,1750036147988,-460.0,0.00022191,4]
[366052070,1750036148018,-460.0,0.00022191,4]
[366052071,1750036148041,-600.1,0.00022191,4]
[366052072,1750036148065,-460.0,0.00022191,4]
[366052073,1750036148088,-280.0,0.00022191,4]
[366052074,1750036148112,-460.0,0.00022369,4]
[366052075,1750036148137,-460.0,0.00022369,4]
[366052076,1750036148158,-817.28837703,0.00022369,2]
[366052117,1750036232688,-158.59618662,0.00020091,2]
[366052118,1750036232699,-160.0,0.00021061,2]
[366052119,1750036232709,-1572.25544728,0.00021498,2]
[366052120,1750036232719,-985.75,0.00021598,2]
[366052121,1750036232728,-1572.25544728,0.00021658,2]
[366052122,1750036232745,-1572.25544728,0.00021817,2]
[366052123,1750036232764,-460.0,0.00021917,4]
[366052124,1750036232774,-460.0,0.00021917,4]
[366052125,1750036232784,-460.0,0.00021917,4]
[366052126,1750036232794,-460.0,0.00022189,4]
[366052127,1750036232805,-460.0,0.00022189,4]
[366052128,1750036232816,-460.0,0.00022191,4]
[366052129,1750036232826,-460.0,0.00022191,4]
[366052130,1750036232836,-460.0,0.00022191,4]
[366052131,1750036232847,-300.0,0.00022368,2]
[366052132,1750036232858,-17659.48321107,0.00022369,2]
[366052133,1750036232869,-500.0,0.00022391,2]
[366052134,1750036232879,-500.0,0.00022391,2]
[366052135,1750036232892,-207.0,0.00022444,2]
[366052136,1750036232902,-460.0,0.00022463,4]
[366052137,1750036232912,-485.11,0.00022463,4]
[366052138,1750036232922,-460.0,0.00022463,4]
[366052139,1750036232931,-460.0,0.00022463,4]
[366052140,1750036232942,-460.0,0.00022463,4]
[366052141,1750036232951,-1000.0,0.00022465,4]
[366052142,1750036232961,-183.41479128,0.00022465,4]
[366052143,1750036232971,-460.0,0.00022465,4]
[366052144,1750036232981,-460.0,0.00022465,4]
[366052145,1750036232991,-556.01,0.00022465,4]
[366052146,1750036233002,-460.0,0.00022465,4]
[366052147,1750036233014,-460.0,0.00022465,4]
[366052148,1750036233024,-460.0,0.00022465,4]
[366052149,1750036233035,-460.0,0.00022465,4]
[366052150,1750036233045,-460.0,0.00022465,4]
[366052151,1750036233054,-460.0,0.00022465,4]
[366052152,1750036233065,-207.0,0.00022702,2]
[366052153,1750036233075,-460.0,0.00022737,4]
[366052154,1750036233085,-460.0,0.00022737,4]
[366052155,1750036233095,-460.0,0.00022737,4]
[366052156,1750036233105,-460.0,0.00022737,4]
[366052157,1750036233115,-460.0,0.00022739,4]
[366052158,1750036233125,-460.0,0.00022739,4]
[366052159,1750036233135,-556.01,0.00022739,4]
[366052160,1750036233146,-460.0,0.00022739,4]
[366052161,1750036233156,-460.0,0.00022739,4]
[366052162,1750036233166,-460.0,0.00022739,4]
[366052163,1750036233176,-460.0,0.00022739,4]
[366052164,1750036233186,-460.0,0.00022739,4]
[366052165,1750036233196,-460.0,0.00022739,4]
[366052166,1750036233207,-451.32321575,0.00022939,2]
[366052167,1750036233216,-188.0,0.00023,3]
[366052168,1750036233226,-188.0,0.00023,2]
[366052169,1750036233236,-188.0,0.00023,2]
[366052170,1750036233247,-192.0,0.00023,2]
[366052171,1750036233259,-164.0,0.00023,7]
[366052172,1750036233269,-207.4,0.00023003,2]
[366052173,1750036233279,-1688.0,0.00023003,2]
[366052174,1750036233288,-460.0,0.00023011,4]
[366052175,1750036233299,-460.0,0.00023011,4]
[366052176,1750036233309,-460.0,0.00023011,4]
[366052177,1750036233319,-460.0,0.00023011,4]
[366052178,1750036233330,-460.0,0.00023013,4]
[366052179,1750036233340,-460.0,0.00023013,4]
[366052180,1750036233351,-556.01,0.00023013,4]
[366052181,1750036233365,-460.0,0.00023013,4]
[366052182,1750036233376,-460.0,0.00023013,4]
[366052183,1750036233386,-460.0,0.00023013,4]
[366052184,1750036233396,-460.0,0.00023013,4]
[366052185,1750036233406,-460.0,0.00023013,4]
[366052186,1750036233417,-460.0,0.00023013,4]
[366052187,1750036233427,-460.0,0.00023285,4]
[366052188,1750036233436,-460.0,0.00023285,4]
[366052189,1750036233447,-373.89691034,0.00023285,4]
[366052190,1750036233458,-460.0,0.00023285,4]
[366052191,1750036233469,-460.0,0.00023287,4]
[366052192,1750036233479,-460.0,0.00023287,4]
[366052193,1750036233489,-556.01,0.00023287,4]
[366052194,1750036233499,-460.0,0.00023287,4]
[366052195,1750036233511,-460.0,0.00023287,4]
[366052196,1750036233521,-460.0,0.00023287,4]
[366052197,1750036233531,-460.0,0.00023287,4]
[366052198,1750036233542,-460.0,0.00023287,4]
[366052199,1750036233552,-460.0,0.00023287,4]
[366052200,1750036233562,-207.0,0.00023401,2]
[366052201,1750036233572,-406.0,0.00023496,2]
[366052202,1750036233582,-460.0,0.00023559,4]
[366052203,1750036233592,-460.0,0.00023559,4]
[366052204,1750036233602,-460.0,0.00023559,4]
[366052205,1750036233612,-200.0,0.00023561,4]
[366052206,1750036233622,-200.0,0.00023561,4]
[366052207,1750036233632,-200.0,0.00023561,4]
[366052208,1750036233643,-200.0,0.00023561,4]
[366052209,1750036233652,-200.0,0.00023561,4]
[366052210,1750036233662,-200.0,0.00023561,4]
[366052211,1750036233672,-200.0,0.00023561,4]
[366052212,1750036233682,-460.0,0.00023561,4]
[366052213,1750036233691,-460.0,0.00023561,4]
[366052214,1750036233700,-556.01,0.00023561,4]
[366052215,1750036233711,-460.0,0.00023561,4]
[366052216,1750036233721,-460.0,0.00023561,4]
[366052217,1750036233730,-460.0,0.00023561,4]
[366052218,1750036233740,-1971.51,0.00023561,2]
[366052219,1750036233750,-460.0,0.00023561,4]
[366052220,1750036233760,-460.0,0.00023561,4]
[366052221,1750036233769,-460.0,0.00023561,4]
[366052222,1750036233780,-188.0,0.000236,4]
[366052223,1750036233791,-188.0,0.000236,4]
[366052224,1750036233803,-188.0,0.000236,4]
[366052225,1750036233817,-188.0,0.000236,3]
[366052226,1750036233827,-188.0,0.000236,3]
[366052227,1750036233837,-188.0,0.000236,3]
[366052228,1750036233847,-424.47602138,0.00023611,2]
[366052229,1750036233859,-229.86375354,0.00023611,2]
[366052230,1750036233870,-213.32089821,0.00023614,2]
[366052231,1750036233882,-835.55256958,0.00023614,2]
[366052232,1750036233892,-160.0,0.00023614,2]
[366052233,1750036233903,-197.61410776,0.000237,2]
[366052234,1750036233913,-3660.86954316,0.000237,2]
[366052235,1750036233924,-500.0,0.00023737,2]
[366052236,1750036233934,-202.86,0.00023737,2]
[366052237,1750036233944,-160.0,0.0002375,2]
[366052238,1750036233954,-160.0,0.0002375,2]
[366052239,1750036233965,-963.61,0.0002379,3]
[366052240,1750036233975,-481.81,0.0002379,3]
[366052241,1750036234143,-240.9,0.0002379,3]
[366052242,1750036234155,-722.75,0.0002379,3]
[366052243,1750036234166,-20040.96136516,0.000238,2]
[366052244,1750036234176,-15944.01858045,0.000238,2]
[366052245,1750036234186,-138228.14909613,0.000238,3]
[366052246,1750036234196,-804.14,0.000238,2]
[366052247,1750036234206,-81507.32743189,0.000238,7]
[366052248,1750036234219,-5323.00134341,0.000238,7]
[366052249,1750036234231,-699.856,0.000238,7]
[366052259,1750036238544,-342.75407338,0.00022368,2]
[366052261,1750036238554,-115.43573617,0.000238,7]
[366052312,1750036239081,-2898.38606697,0.000238,7]
[366052314,1750036239093,-801.28414163,0.000238,7]
[366052316,1750036239104,-416.39376009,0.000238,7]
[366052466,1750036240733,-421.16935955,0.00021917,4]
[366054388,1750036535325,390.40568221,0.000219,120]
[366054389,1750036639301,987.75,0.00019,2]
[366054401,1750037250127,-468.46208269,0.00020732,2]
[366054402,1750037250149,-35.77062773,0.00021675,2]
[366054403,1750037251146,-933.99937227,0.00021675,2]
[366054404,1750037251167,-42.00889866,0.000217,2]
[366054405,1750037287732,162.873946,0.00013699,2]
[366054492,1750037432392,-150.0,0.000198,2]
[366054494,1750037432402,-205.09524097,0.00021462,2]
[366054496,1750037432411,-1200.0,0.00021678,2]
[366054498,1750037432421,-14123.19696762,0.00021679,2]
[366054500,1750037432435,-101803.14392238,0.00021679,2]
[366054502,1750037432445,-957.43,0.0002168,2]
[366054504,1750037432455,-300.0,0.00021915,2]
[366054506,1750037432464,-300.0,0.00021915,2]
[366054508,1750037432474,-300.0,0.00021915,2]
[366054510,1750037432484,-6990.5446264,0.00021916,2]
[366054512,1750037432493,-172.695,0.00021916,2]
[366054514,1750037432502,-419.16729147,0.00021916,2]
[366054516,1750037432512,-500.0,0.00021916,2]
[366054518,1750037432521,-187.64720845,0.00021916,2]
[366054520,1750037432531,-196.27343359,0.00021916,2]
[366054522,1750037432541,-345.5492591,0.00021916,2]
[366054524,1750037432551,-180.65155971,0.00021916,2]
[366054526,1750037432561,-460.0,0.00021917,4]
[366054529,1750037432582,-460.0,0.00021917,4]
[366054531,1750037432594,-460.0,0.00021917,4]
[366054533,1750037432604,-460.0,0.00021917,2]
[366054535,1750037432614,-460.0,0.00021917,4]
[366054538,1750037432624,-166.0,0.00022,2]
[366054539,1750037432635,-174.0,0.00022,2]
[366054542,1750037432645,-460.0,0.0002219,4]
[366054544,1750037432657,-460.0,0.00022191,2]
[366054546,1750037432667,-162.13008846,0.00022364,2]
[366054548,1750037432678,-460.53583138,0.00022365,2]
[366054550,1750037432687,-460.0,0.00022366,4]
[366054552,1750037432698,-460.0,0.00022366,4]
[366054554,1750037432708,-460.0,0.00022366,4]
[366054556,1750037432719,-442.16,0.00022366,4]
[366054558,1750037432728,-460.0,0.00022366,4]
[366054560,1750037432739,-460.0,0.00022366,4]
[366054562,1750037432749,-460.0,0.00022366,4]
[366054564,1750037432759,-333.09086601,0.00022366,4]
[366054566,1750037432769,-460.0,0.00022366,4]
[366054569,1750037432780,-460.0,0.00022366,4]
[366054571,1750037432790,-460.0,0.00022366,4]
[366054573,1750037432801,-460.0,0.00022366,4]
[366054575,1750037432811,-460.0,0.00022366,4]
[366054577,1750037432822,-480.0,0.00022367,4]
[366054579,1750037432832,-460.0,0.00022367,4]
[366054581,1750037432842,-460.0,0.00022367,4]
[366054583,1750037432852,-492.13,0.00022367,4]
[366054585,1750037432862,-460.0,0.00022367,4]
[366054587,1750037432872,-460.0,0.00022367,4]
[366054589,1750037432881,-460.0,0.00022367,4]
[366054591,1750037432891,-460.0,0.00022367,4]
[366054593,1750037432901,-460.0,0.00022367,4]
[366054595,1750037432911,-482.05023972,0.00022367,4]
[366054597,1750037432921,-318.57007474,0.00022369,4]
[366054600,1750037432931,-160.0,0.00022438,2]
[366054602,1750037432941,-835.55256958,0.00022438,2]
[366054604,1750037432951,-424.47602138,0.00022438,2]
[366054606,1750037432961,-229.86375354,0.00022439,2]
[366054608,1750037432970,-460.0,0.00022464,4]
[366054610,1750037432982,-500.0,0.00022464,2]
[366054612,1750037432992,-500.0,0.00022464,2]
[366054614,1750037433001,-500.0,0.00022464,2]
[366054616,1750037433011,-500.0,0.00022464,2]
[366054618,1750037433022,-500.0,0.00022464,2]
[366054620,1750037433032,-500.0,0.00022464,2]
[366054622,1750037433042,-598.5698594,0.00022464,2]
[366054625,1750037433051,-500.0,0.00022464,2]
[366054626,1750037433061,-500.0,0.00022464,2]
[366054627,1750037433071,-151.0,0.00022465,4]
[366054628,1750037433082,-182.958,0.00022541,2]
[366054629,1750037433091,-505.3420478,0.00022545,2]
[366054630,1750037433101,-501.31950646,0.00022545,2]
[366054631,1750037433111,-502.7263873,0.00022545,2]
[366054632,1750037433120,-460.0,0.0002264,4]
[366054633,1750037433130,-460.0,0.0002264,4]
[366054634,1750037433140,-460.0,0.0002264,4]
[366054635,1750037433151,-460.0,0.0002264,4]
[366054636,1750037433162,-460.0,0.0002264,4]
[366054637,1750037433173,-460.0,0.0002264,4]
[366054638,1750037433183,-460.0,0.00022641,4]
[366054639,1750037433199,-492.13,0.00022641,4]
[366054640,1750037433209,-460.0,0.00022641,4]
[366054641,1750037433219,-151.0,0.00022738,2]
[366054642,1750037433230,-151.0,0.00022738,2]
[366054644,1750037433240,-151.0,0.00022738,2]
[366054645,1750037433250,-151.0,0.00022738,2]
[366054646,1750037433260,-154.0924037,0.00022738,2]
[366054647,1750037433271,-153.75203831,0.00022738,2]
[366054648,1750037433281,-151.96478209,0.00022738,2]
[366054649,1750037433292,-460.0,0.00022738,4]
[366054650,1750037433302,-151.0,0.00022765,2]
[366054652,1750037433312,-206.62933508,0.00022765,2]
[366054654,1750037433323,-151.0,0.00022765,2]
[366054656,1750037433332,-151.0,0.00022765,2]
[366054658,1750037433343,-151.0,0.00022793,2]
[366054660,1750037433355,-151.0,0.00022793,2]
[366054662,1750037433365,-151.0,0.00022793,2]
[366054664,1750037433375,-151.0,0.0002282,2]
[366054666,1750037433385,-158.6675179,0.0002282,2]
[366054668,1750037433396,-500.0,0.0002284,2]
[366054671,1750037433406,-500.0,0.0002284,2]
[366054673,1750037433416,-500.0,0.0002284,2]
[366054675,1750037433428,-460.0,0.00022914,4]
[366054677,1750037433438,-460.0,0.00022914,4]
[366054679,1750037433448,-460.0,0.00022914,4]
[366054681,1750037433458,-460.0,0.00022914,4]
[366054683,1750037433468,-162.44617439,0.00022914,4]
[366054685,1750037433478,-460.0,0.00022914,4]
[366054687,1750037433488,-323.50189135,0.00022915,4]
[366054689,1750037433499,-460.0,0.00022915,4]
[366054691,1750037433508,-392.43320601,0.00022915,2]
[366054693,1750037433518,-430.0,0.00022915,2]
[366054695,1750037433528,-460.0,0.00022915,4]
[366054697,1750037433538,-460.0,0.00022915,4]
[366054699,1750037433548,-1000.0,0.00022915,4]
[366054701,1750037433559,-492.13,0.00022915,4]
[366054703,1750037433569,-506.29,0.00022915,4]
[366054705,1750037433579,-400.0,0.00022915,4]
[366054707,1750037433590,-460.0,0.00022915,4]
[366054709,1750037433600,-460.0,0.00022915,4]
[366054711,1750037433611,-460.0,0.00022915,4]
[366054713,1750037433621,-500.0,0.00022958,2]
[366054715,1750037433631,-501.44768991,0.00022958,2]
[366054717,1750037433641,-464.92183029,0.00022958,2]
[366054719,1750037433652,-500.0,0.00022958,2]
[366054720,1750037433662,-500.0,0.00022958,2]
[366054722,1750037433672,-506.10581478,0.00022958,2]
[366054724,1750037433682,-503.45678693,0.00022958,2]
[366054726,1750037433692,-501.63071512,0.00022958,2]
[366054729,1750037433702,-2005.14,0.00023,3]
[366054731,1750037433712,-29569.44255295,0.00023,2]
[366055001,1750037437785,-399.49432607,0.00021678,2]
[366055002,1750037437798,-100.50567393,0.00021678,2]
[366055003,1750037437808,-315.17310547,0.00021678,2]
[366055004,1750037437820,-295.89777414,0.00021678,2]
[366055005,1750037437831,-180.06076112,0.00022615,2]
[366055006,1750037437843,-15819.93923888,0.00022615,2]
[366055007,1750037437853,-1084.91583192,0.00022615,2]
[366055008,1750037437863,-7436.02407653,0.00023,2]
[366055009,1750037437873,-207.4,0.00023003,2]
[366055010,1750037437883,-639.62885645,0.00023111,2]
[366055011,1750037437892,-508.94531069,0.00023111,2]
[366055012,1750037437903,-460.0,0.00023188,4]
[366055013,1750037437912,-460.0,0.00023188,4]
[366055014,1750037437922,-460.0,0.00023188,4]
[366055015,1750037437932,-460.0,0.00023188,4]
[366055016,1750037437942,-460.0,0.00023188,4]
[366055017,1750037437951,-460.0,0.00023189,4]
[366055018,1750037437960,-492.13,0.00023189,4]
[366055019,1750037437970,-460.0,0.00023189,4]
[366055020,1750037437979,-460.0,0.00023189,4]
[366055021,1750037437989,-460.0,0.00023189,4]
[366055022,1750037437998,-2000.0,0.000232,3]
[366055023,1750037438008,-189.4970927,0.00023219,2]
[366055024,1750037438017,-151.0,0.00023288,4]
[366055025,1750037438027,-151.31678324,0.00023315,4]
[366055026,1750037438037,-1137.049425,0.00023324,3]
[366055027,1750037438046,-500.0,0.0002335,2]
[366055028,1750037438056,-460.0,0.00023462,4]
[366055029,1750037438066,-460.0,0.00023462,4]
[366055030,1750037438075,-460.0,0.00023462,4]
[366055031,1750037438086,-460.0,0.00023462,4]
[366055032,1750037438096,-460.0,0.00023463,4]
[366055033,1750037438105,-492.13,0.00023463,4]
[366055034,1750037438115,-195.15563846,0.00023463,4]
[366055035,1750037438125,-460.0,0.00023463,4]
[366055036,1750037438135,-460.0,0.00023463,4]
[366055037,1750037438144,-2000.0,0.000235,3]
[366055038,1750037438155,-502.47583568,0.00023506,2]
[366055039,1750037438164,-201.73228553,0.00023561,4]
[366055040,1750037438174,-176.06854448,0.00023735,2]
[366055041,1750037438185,-460.0,0.00023736,4]
[366055042,1750037438195,-460.0,0.00023736,4]
[366055043,1750037438204,-460.0,0.00023736,4]
[366055044,1750037438214,-167.64832395,0.00023736,4]
[366055045,1750037438223,-492.13,0.00023737,4]
[366055046,1750037438233,-460.0,0.00023737,4]
[366055047,1750037438243,-460.0,0.00023737,4]
[366055048,1750037438252,-168.0,0.00023765,2]
[366055049,1750037438262,-20242.15551984,0.000238,7]
[366055050,1750037438272,-151.0,0.000238,7]
[366055051,1750037438281,-151.0,0.000238,7]
[366055052,1750037438291,-151.0,0.000238,7]
[366055053,1750037438300,-151.0,0.000238,7]
[366055054,1750037438310,-151.0,0.000238,7]
[366055055,1750037438320,-151.0,0.000238,7]
[366055056,1750037438330,-723.72,0.000238,2]
[366055057,1750037438340,-151.0,0.000238,7]
[366055058,1750037438496,-652.97,0.000238,7]
[366055059,1750037438507,-43292.47057329,0.000238,5]
[366055060,1750037438520,-1235.907645,0.000238,5]
[366055061,1750037438536,-1584.78326084,0.000238,5]
[366055062,1750037438546,-500.0,0.000238,2]
[366055063,1750037438555,-325.33820001,0.000238,2]
[366055073,1750037439946,-174.66179999,0.000238,2]
[366055074,1750037439956,-151.432943,0.000238,7]
[366055075,1750037439966,-281.37815309,0.000238,3]
[366055076,1750037439976,-270.0,0.00023816,2]
[366055077,1750037439986,-420.0,0.00023816,2]
[366055078,1750037439995,-562.1,0.00023825,3]
[366055079,1750037440005,-281.05,0.00023825,3]
[366055080,1750037440015,-331.97272172,0.00023825,3]
[366055954,1750037535963,204.9224401,0.00024657,120]
[366055960,1750037762495,1001.87844216,0.00024657,120]
[366055983,1750038360033,163.646106,0.00013699,2]
[366055985,1750038444176,-5000.0,0.00020275,2]
[366055986,1750038444198,-668.6867505,0.00020687,2]
[366055987,1750038444221,-159.83283256,0.00020961,2]
[366055988,1750038444243,-300.0,0.00020998,2]
[366055989,1750038444264,-300.0,0.00020998,2]
[366055990,1750038444288,-300.0,0.00020999,2]
[366055991,1750038444309,-1200.0,0.00020999,2]
[366055992,1750038444332,-4310.82,0.00021,2]
[366055993,1750038444354,-500.0,0.00021058,2]
[366055994,1750038444376,-548.57862846,0.00021058,2]
[366055995,1750038444398,-573.43918954,0.00021058,2]
[366055996,1750038444419,-500.0,0.00021058,2]
[366055997,1750038444440,-508.76382172,0.00021058,2]
[366055998,1750038444461,-503.71686479,0.00021058,2]
[366055999,1750038444482,-282.74343642,0.00021058,2]
[366056000,1750038444503,-81.88234262,0.00021058,2]
[366056003,1750038616479,150.0,0.00018958,2]
[366056063,1750038632076,-5000.0,0.00020847,2]
[366056066,1750038632086,-300.0,0.00021059,2]
[366056067,1750038632095,-1200.0,0.00021059,2]
[366056070,1750038632105,-198.072,0.0002106,2]
[366056072,1750038632115,-500.0,0.0002106,2]
[366056074,1750038632124,-459.39826906,0.0002106,2]
[366056075,1750038632134,-114.43002696,0.0002106,2]
[366056083,1750038632205,-280.09952688,0.0002106,2]
[366056084,1750038632214,-46.03047312,0.0002106,2]
[366056085,1750038632276,-184.10609464,0.0002106,2]
[366056086,1750038632286,-500.0,0.0002106,2]
[366056087,1750038632296,-512.22570358,0.0002106,2]
[366056088,1750038632306,-160.0,0.00021061,2]
[366056089,1750038632315,-160.0,0.00021061,2]
[366056091,1750038632325,-160.0,0.00021061,2]
[366056093,1750038632335,-160.0,0.00021061,2]
[366056094,1750038632344,-8297.42734415,0.00021061,2]
[366056095,1750038632356,-978.04907492,0.00021061,2]
[366056106,1750038637955,-3260.14988822,0.00021061,2]
[366056107,1750038637965,-160.0,0.00021061,2]
[366056108,1750038637975,-213.32089821,0.00021061,2]
[366056109,1750038637984,-160.0,0.00021061,2]
[366056110,1750038637995,-160.0,0.00021061,2]
[366056111,1750038638005,-556.0,0.0002108,2]
[366056112,1750038638015,-159.83283254,0.000213,2]
[366056113,1750038638024,-8055.0388225,0.00021326,2]
[366056114,1750038638034,-160.91875624,0.000214,2]
[366056115,1750038638044,-845.25843836,0.00021667,2]
[366056116,1750038638053,-229.86375354,0.00021667,2]
[366056117,1750038638064,-160.0,0.00021667,2]
[366056118,1750038638073,-835.55256958,0.00021667,2]
[366056119,1750038638082,-424.47602138,0.00021668,2]
[366056120,1750038638095,-500.0,0.00021678,2]
[366056121,1750038638104,-967.52,0.00021682,2]
[366056122,1750038638115,-460.0,0.00021917,4]
[366056123,1750038638124,-430.41226605,0.00021917,2]
[366056124,1750038638134,-460.0,0.00021917,4]
[366056125,1750038638144,-318.59043707,0.00021917,4]
[366056126,1750038638153,-460.0,0.00021917,4]
[366056127,1750038638163,-460.0,0.00021917,4]
[366056128,1750038638172,-460.0,0.00021917,4]
[366056129,1750038638181,-460.0,0.00021917,4]
[366056130,1750038638193,-1715.98569,0.00021917,2]
[366056132,1750038638202,-500.0,0.00021918,2]
[366056134,1750038638212,-500.0,0.00021918,2]
[366056136,1750038638221,-277.90853797,0.00021918,2]
[366056138,1750038638231,-500.0,0.00021918,2]
[366056139,1750038638240,-556.0,0.00021944,2]
[366056140,1750038638249,-159.83283254,0.00022186,2]
[366056141,1750038638259,-452.58512207,0.00022189,4]
[366056142,1750038638271,-460.0,0.00022189,4]
[366056143,1750038638281,-460.0,0.00022189,4]
[366056144,1750038638290,-362.13425353,0.00022189,4]
[366056145,1750038638299,-477.72519716,0.00022189,4]
[366056146,1750038638309,-497.15823727,0.00022189,4]
[366056147,1750038638319,-201.70322955,0.00022189,4]
[366056148,1750038638328,-460.0,0.00022189,4]
[366056149,1750038638338,-460.0,0.00022191,4]
[366056150,1750038638347,-460.0,0.00022191,4]
[366056151,1750038638357,-460.0,0.00022191,4]
[366056152,1750038638367,-460.0,0.00022191,4]
[366056153,1750038638378,-460.0,0.00022191,4]
[366056154,1750038638387,-460.0,0.00022191,4]
[366056155,1750038638397,-180.75553747,0.000222,69]
[366056156,1750038638407,-500.0,0.00022226,3]
[366056157,1750038638417,-460.0,0.00022365,2]
[366056158,1750038638426,-317.53820694,0.00022365,4]
[366056159,1750038638435,-503.99013325,0.00022375,2]
[366056160,1750038638445,-460.0,0.00022463,4]
[366056161,1750038638454,-460.0,0.00022463,4]
[366056162,1750038638464,-460.0,0.00022463,4]
[366056163,1750038638474,-460.0,0.00022465,4]
[366056164,1750038638483,-460.0,0.00022465,4]
[366056165,1750038638493,-460.0,0.00022465,4]
[366056166,1750038638502,-460.0,0.00022465,4]
[366056167,1750038638512,-460.0,0.00022465,4]
[366056168,1750038638522,-460.0,0.00022465,4]
[366056169,1750038638532,-500.66384144,0.00022467,2]
[366056170,1750038638541,-168.5557414,0.00022534,2]
[366056171,1750038638551,-238.1723161,0.00022534,2]
[366056172,1750038638561,-153.0,0.00022534,2]
[366056173,1750038638571,-153.0,0.00022534,2]
[366056174,1750038638581,-460.0,0.00022639,2]
[366056175,1750038638591,-504.09730674,0.00022693,2]
[366056176,1750038638601,-460.0,0.00022737,4]
[366056177,1750038638611,-460.0,0.00022737,4]
[366056178,1750038638621,-460.0,0.00022737,4]
[366056179,1750038638631,-460.0,0.00022739,4]
[366056180,1750038638640,-460.0,0.00022739,4]
[366056181,1750038638649,-460.0,0.00022739,4]
[366056182,1750038638659,-460.0,0.00022739,4]
[366056183,1750038638668,-460.0,0.00022739,4]
[366056184,1750038638678,-603.82570493,0.00022739,4]
[366056185,1750038638687,-556.0,0.00022749,2]
[366056186,1750038638697,-337.037282,0.00022774,4]
[366056187,1750038638707,-556.0,0.00022808,2]
[366056188,1750038638717,-168.0,0.00022812,2]
[366056189,1750038638726,-420.0,0.00022841,2]
[366056190,1750038638735,-420.0,0.00022906,2]
[366056191,1750038638747,-455.16758332,0.00022912,4]